bitfinex-derivatives/quotes_BTCF0:USTF0_20241023
["timestamp","ask_amount","ask_price","bid_price","bid_amount"]
[1729702559872,0.075933,65897.0,65892.0,0.075938]
[1729702560084,0.075933,65897.0,65895.0,0.26]
[1729702560272,0.075924,65904.0,65895.0,0.26]
[1729702560481,0.03022277,65905.0,65895.0,0.26]
[1729702560880,0.03022277,65905.0,65896.0,0.075933]
[1729702561275,0.26,65899.0,65880.0,0.26]
[1729702561475,0.075939,65892.0,65888.0,0.075943]
[1729702562394,0.26,65894.0,65880.0,0.26]
[1729702562593,0.26,65889.0,65877.0,0.1143]
[1729702562795,0.075941,65890.0,65888.0,0.26]
[1729702562985,0.1138,65904.0,65889.0,0.26]
[1729702563185,0.1138,65904.0,65879.0,0.26]
[1729702563186,0.075933,65897.0,65894.0,0.26]
[1729702563583,0.075933,65897.0,65893.0,0.186537]
[1729702563584,0.075935,65895.0,65893.0,0.1106]
[1729702563790,0.075935,65895.0,65890.0,0.3748]
[1729702563791,0.26,65901.0,65890.0,0.1148]
[1729702563996,0.075939,65891.0,65890.0,0.1148]
[1729702564298,0.26,65897.0,65889.0,0.075941]
[1729702564483,0.07594,65891.0,65886.0,0.26]
[1729702564678,0.075942,65889.0,65886.0,0.26]
[1729702564893,0.075937,65894.0,65888.0,0.075943]
[1729702565098,0.26,65902.0,65886.0,0.26]
[1729702565295,0.26,65902.0,65892.0,0.06025199]
[1729702565484,0.26,65897.0,65893.0,0.06041286]
[1729702565792,0.075937,65893.0,65892.0,0.06041286]
[1729702565997,0.26,65901.0,65896.0,0.075933]
[1729702565998,0.075928,65901.0,65896.0,0.075933]
[1729702566197,0.02777096,65911.0,65906.0,0.075922]
[1729702566384,0.075912,65915.0,65906.0,0.335922]
[1729702566688,0.10303667,65918.0,65914.0,0.075913]
[1729702566888,0.1193,65926.0,65915.0,0.06040907]
[1729702567096,0.1193,65926.0,65919.0,0.04530542]
[1729702567097,0.075906,65920.0,65919.0,0.04530542]
[1729702567294,0.075908,65918.0,65916.0,0.06040907]
[1729702567589,0.075903,65923.0,65917.0,0.06040907]
[1729702567793,0.14663571,65926.0,65922.0,0.04531976]
[1729702567998,0.075901,65924.0,65923.0,0.04531976]
[1729702568293,0.075901,65924.0,65914.0,0.1192]
[1729702568294,0.075897,65928.0,65922.0,0.26]
[1729702568488,0.02709404,65931.0,65925.0,0.06040907]
[1729702568681,0.00227616,65934.0,65930.0,0.04533254]
[1729702568886,0.075897,65928.0,65927.0,0.06040907]
[1729702569086,0.075899,65927.0,65917.0,0.26]
[1729702569286,0.075899,65927.0,65921.0,0.075904]
[1729702569596,0.0759,65926.0,65921.0,0.075904]
[1729702569984,0.0759,65926.0,65923.0,0.26]
[1729702570294,0.02669185,65934.0,65923.0,0.33556952]
[1729702570295,0.075894,65931.0,65923.0,0.33556952]
[1729702570496,0.26,65943.0,65929.0,0.26]
[1729702570697,0.02762481,65943.0,65939.0,0.04534171]
[1729702570889,0.02762481,65943.0,65933.0,0.26]
[1729702570890,0.07588,65943.0,65942.0,0.04534171]
[1729702571093,0.00227595,65945.0,65942.0,0.30533767]
[1729702571300,0.07588,65943.0,65942.0,0.32045561]
[1729702571497,0.00227595,65945.0,65942.0,0.39629186]
[1729702571703,0.00227595,65945.0,65943.0,0.13629018]
[1729702571997,0.1904,65957.0,65942.0,0.26]
[1729702571998,0.075867,65954.0,65945.0,0.075876]
[1729702572298,0.1156,65960.0,65951.0,0.26]
[1729702572499,0.075867,65955.0,65952.0,0.04530373]
[1729702572793,0.075867,65955.0,65942.0,0.07556952]
[1729702572794,0.075866,65955.0,65954.0,0.04525864]
[1729702572999,0.26,65957.0,65954.0,0.04525871]
[1729702573000,0.075865,65956.0,65954.0,0.04525871]
[1729702573200,0.075866,65955.0,65954.0,0.04525871]
[1729702573399,0.075874,65948.0,65942.0,0.26]
[1729702573582,0.08376933,65947.0,65942.0,0.26]
[1729702573788,0.08376933,65946.0,65942.0,0.26]
[1729702573999,0.08376933,65945.0,65942.0,0.26]
[1729702574298,0.08376933,65944.0,65942.0,0.26]
[1729702574492,0.08376933,65943.0,65942.0,0.335881]
[1729702577288,0.04659522,65943.0,65942.0,0.335881]
[1729702577503,0.04659522,65943.0,65926.0,0.075899]
[1729702577504,0.30659522,65943.0,65935.0,0.075889]
[1729702577695,0.10104137,65942.0,65935.0,0.075889]
[1729702577892,0.04659522,65941.0,65935.0,0.075889]
[1729702578111,0.04659522,65940.0,65935.0,0.075889]
[1729702578395,0.08377248,65939.0,65936.0,0.075886]
[1729702578594,0.27115303,65940.0,65939.0,0.075884]
[1729702578790,0.15966038,65940.0,65939.0,0.075884]
[1729702579393,0.12248314,65940.0,65939.0,0.075884]
[1729702579592,0.04659914,65940.0,65938.0,0.26]
[1729702579793,0.19526903,65944.0,65938.0,0.26]
[1729702579794,0.12248314,65939.0,65938.0,0.26]
[1729702580000,0.04659914,65939.0,65935.0,0.075889]
[1729702580205,0.12248414,65938.0,65936.0,0.075887]
[1729702580402,0.075885,65938.0,65936.0,0.075887]
[1729702580607,0.075886,65937.0,65936.0,0.075887]
[1729702580909,0.075889,65935.0,65929.0,0.26]
[1729702581204,0.26,65942.0,65929.0,0.26]
[1729702581512,0.075899,65926.0,65925.0,0.2622754]
[1729702581893,0.075899,65926.0,65925.0,0.0022754]
[1729702583296,0.075899,65926.0,65925.0,0.2622754]
[1729702583492,0.075899,65926.0,65925.0,0.3381754]
[1729702585507,0.075899,65926.0,65925.0,0.2622754]
[1729702586016,0.075899,65926.0,65925.0,0.0022754]
[1729702586495,0.075899,65926.0,65906.0,0.121]
[1729702586496,0.530939,65926.0,65906.0,0.121]
[1729702586697,0.530939,65926.0,65894.0,0.4894]
[1729702586698,0.26,65910.0,65894.0,0.4894]
[1729702586902,0.26,65905.0,65895.0,0.075934]
[1729702587107,0.26,65896.0,65887.0,0.1177]
[1729702587304,0.075939,65892.0,65886.0,0.335945]
[1729702587509,0.075939,65892.0,65888.0,0.075943]
[1729702587695,0.26,65900.0,65888.0,0.075943]
[1729702587895,0.1818,65909.0,65890.0,0.26]
[1729702587896,0.26,65905.0,65890.0,0.26]
[1729702588301,0.075933,65897.0,65890.0,0.26]
[1729702588500,0.04663448,65896.0,65892.0,0.075938]
[1729702589105,0.12256848,65896.0,65890.0,0.26]
[1729702589301,0.04663448,65895.0,65890.0,0.26]
[1729702589815,0.26,65894.0,65881.0,0.2381]
[1729702590016,0.26,65894.0,65882.0,0.07595]
[1729702590017,0.10112651,65893.0,65882.0,0.07595]
[1729702590417,0.26,65891.0,65880.0,0.00227637]
[1729702590711,0.07595,65883.0,65880.0,0.00227637]
[1729702590916,0.10112651,65890.0,65880.0,0.00227637]
[1729702590917,0.04663448,65882.0,65880.0,0.00227637]
[1729702591112,0.05449203,65890.0,65880.0,0.07822837]
[1729702591113,0.04663448,65881.0,65880.0,0.07822837]
[1729702591316,0.05449203,65890.0,65885.0,0.075946]
[1729702591317,0.04663997,65886.0,65885.0,0.075946]
[1729702591503,0.04663974,65886.0,65885.0,0.335946]
[1729702594623,0.04663974,65886.0,65885.0,0.26]
[1729702594927,0.04663974,65886.0,65880.0,0.00227637]
[1729702594928,0.07595,65882.0,65880.0,0.00227637]
[1729702595120,0.04663974,65881.0,65880.0,0.00227637]
[1729702595308,0.45526903,65895.0,65880.0,0.26227637]
[1729702595510,0.45526903,65895.0,65886.0,0.04514295]
[1729702596122,0.075943,65888.0,65887.0,0.04514295]
[1729702596317,0.075943,65888.0,65886.0,0.04514295]
[1729702596518,0.075943,65888.0,65885.0,0.04514295]
[1729702596821,0.075945,65886.0,65885.0,0.04514295]
[1729702597221,0.075945,65886.0,65881.0,0.1361406]
[1729702597222,0.075945,65886.0,65884.0,0.04514295]
[1729702597524,0.075945,65886.0,65883.0,0.04514295]
[1729702598021,0.075945,65886.0,65884.0,0.04514295]
[1729702598221,0.28936476,65895.0,65883.0,0.04514295]
[1729702598423,0.075945,65886.0,65883.0,0.04514295]
[1729702598631,0.075945,65886.0,65882.0,0.04514295]
[1729702600009,0.075947,65885.0,65882.0,0.04514295]
[1729702600308,0.075949,65883.0,65882.0,0.04514295]
[1729702600509,0.26,65883.0,65880.0,0.00227637]
[1729702600709,0.075951,65881.0,65880.0,0.00227637]
[1729702601113,0.075957,65876.0,65875.0,0.26]
[1729702601324,0.075957,65876.0,65875.0,0.30506815]
[1729702601514,0.075958,65875.0,65874.0,0.04506815]
[1729702602422,0.075958,65875.0,65874.0,0.30506815]
[1729702602622,0.075958,65875.0,65874.0,0.04506815]
[1729702602817,0.1139,65882.0,65873.0,0.04506815]
[1729702602818,0.189851,65882.0,65873.0,0.04506815]
[1729702603021,0.075959,65874.0,65873.0,0.04506815]
[1729702603524,0.189851,65882.0,65870.0,0.335963]
[1729702603525,0.1139,65882.0,65870.0,0.335963]
[1729702603835,0.075957,65876.0,65875.0,0.26]
[1729702607919,0.075954,65879.0,65876.0,0.075956]
[1729702608138,0.075954,65879.0,65878.0,0.26]
[1729702608324,0.14165038,65882.0,65864.0,0.02703869]
[1729702608325,0.075955,65878.0,65874.0,0.26]
[1729702608521,0.075956,65877.0,65874.0,0.26]
[1729702608825,0.14165038,65882.0,65874.0,0.26]
[1729702609027,0.075958,65875.0,65874.0,0.26]
[1729702609823,0.075958,65875.0,65874.0,0.335959]
[1729702610124,0.075958,65875.0,65874.0,0.26]
[1729702610325,0.075954,65879.0,65876.0,0.075956]
[1729702610626,0.075954,65879.0,65878.0,0.18]
[1729702610829,0.075954,65879.0,65878.0,0.29581652]
[1729702611029,0.075954,65879.0,65878.0,0.11581652]
[1729702611228,0.075954,65879.0,65878.0,0.19117591]
[1729702611421,0.075954,65879.0,65878.0,0.19117837]
[1729702611623,0.075954,65879.0,65878.0,0.11581898]
[1729702613636,0.075954,65878.0,65875.0,0.18]
[1729702613821,0.14165038,65882.0,65876.0,0.2567911]
[1729702613822,0.075956,65877.0,65876.0,0.2567911]
[1729702614015,0.075956,65877.0,65876.0,0.4367911]
[1729702614216,0.075956,65877.0,65876.0,0.29581931]
[1729702614421,0.075956,65877.0,65876.0,0.11581931]
[1729702614623,0.075956,65877.0,65876.0,0.25678874]
[1729702615532,0.075956,65877.0,65876.0,0.25679227]
[1729702616528,0.075956,65877.0,65876.0,0.42291806]
[1729702616928,0.075956,65877.0,65876.0,0.60291806]
[1729702617725,0.14165038,65882.0,65876.0,0.7238293]
[1729702617931,0.075952,65880.0,65879.0,0.10608351]
[1729702618133,0.14165038,65882.0,65879.0,0.42291806]
[1729702618332,0.075951,65881.0,65880.0,0.25679227]
[1729702619539,0.255951,65881.0,65880.0,0.25679227]
[1729702620535,0.075951,65881.0,65880.0,0.4229139]
[1729702620837,0.075951,65881.0,65880.0,0.6029139]
[1729702621425,0.075951,65881.0,65880.0,0.18]
[1729702621629,0.075951,65881.0,65880.0,0.42290378]
[1729702622131,0.02775038,65882.0,65880.0,0.42290378]
[1729702622327,0.075942,65889.0,65886.0,0.075945]
[1729702622530,0.075943,65888.0,65887.0,0.42290534]
[1729702622728,0.255943,65888.0,65887.0,0.42290534]
[1729702622929,0.255943,65888.0,65887.0,0.52906485]
[1729702623130,0.255943,65888.0,65887.0,0.52906494]
[1729702623433,0.711263,65888.0,65887.0,0.25678406]
[1729702623947,0.075953,65879.0,65878.0,0.1061672]
[1729702624236,0.255953,65879.0,65878.0,0.1061672]
[1729702624539,0.255953,65879.0,65878.0,0.16612986]
[1729702625235,0.255953,65879.0,65878.0,0.27235992]
[1729702625543,0.075961,65872.0,65871.0,0.18]
[1729702625839,0.24177149,65872.0,65871.0,0.18]
[1729702626042,0.32564352,65872.0,65871.0,0.18]
[1729702626428,0.2143441,65872.0,65871.0,0.18]
[1729702626630,0.08387092,65872.0,65871.0,0.18]
[1729702626839,0.15983192,65872.0,65871.0,0.18]
[1729702627036,0.08387092,65872.0,65871.0,0.255962]
[1729702627243,0.16582846,65875.0,65872.0,0.075961]
[1729702627433,0.195838,65893.0,65870.0,0.2369]
[1729702627434,0.05451201,65881.0,65880.0,0.075952]
[1729702627636,0.02733009,65884.0,65883.0,0.075949]
[1729702627836,0.05451201,65892.0,65881.0,0.18]
[1729702628034,0.075944,65887.0,65886.0,0.18]
[1729702628547,0.075944,65887.0,65886.0,0.255945]
[1729702628843,0.08253473,65892.0,65890.0,0.075941]
[1729702628844,0.075941,65891.0,65890.0,0.075941]
[1729702629033,0.075941,65891.0,65890.0,0.255941]
[1729702629339,0.02802272,65892.0,65887.0,0.121]
[1729702629533,0.075937,65893.0,65887.0,0.196943]
[1729702629733,0.075943,65889.0,65887.0,0.196943]
[1729702629932,0.075939,65892.0,65889.0,0.075941]
[1729702630135,0.075939,65892.0,65887.0,0.121]
[1729702630136,0.075941,65890.0,65887.0,0.121]
[1729702630338,0.05451201,65893.0,65887.0,0.121]
[1729702630542,0.07594,65891.0,65887.0,0.121]
[1729702630737,0.18,65891.0,65887.0,0.121]
[1729702631042,0.255943,65888.0,65887.0,0.121]
[1729702631244,0.075943,65888.0,65887.0,0.121]
[1729702632342,0.12258247,65888.0,65887.0,0.121]
[1729702632639,0.255943,65888.0,65887.0,0.121]
[1729702632844,0.18,65888.0,65882.0,0.1185]
[1729702633040,0.075947,65885.0,65883.0,0.075949]
[1729702633242,0.075947,65885.0,65884.0,0.075947]
[1729702633836,0.075943,65888.0,65883.0,0.18]
[1729702634053,0.075943,65888.0,65882.0,0.1185]
[1729702634054,0.00196,65900.0,65887.0,0.18]
[1729702634236,0.075924,65905.0,65901.0,0.075928]
[1729702634437,0.075919,65910.0,65901.0,0.075928]
[1729702634640,0.07592,65908.0,65901.0,0.075928]
[1729702634841,0.18,65914.0,65901.0,0.075928]
[1729702634842,0.075917,65911.0,65901.0,0.075928]
[1729702635140,0.18,65914.0,65900.0,0.2473]
[1729702635141,0.02804111,65907.0,65903.0,0.075925]
[1729702635332,0.18,65914.0,65904.0,0.18]
[1729702635535,0.18,65914.0,65908.0,0.18]
[1729702635536,0.075913,65914.0,65908.0,0.18]
[1729702635736,0.075913,65914.0,65905.0,0.255923]
[1729702635737,0.02697093,65914.0,65905.0,0.255923]
[1729702635941,0.075918,65910.0,65905.0,0.255923]
[1729702636130,0.075918,65910.0,65907.0,0.075921]
[1729702636538,0.075918,65910.0,65905.0,0.18]
[1729702636845,0.075918,65910.0,65900.0,0.2473]
[1729702636846,0.02766504,65915.0,65909.0,0.18]
[1729702637043,0.075911,65916.0,65914.0,0.18]
[1729702637240,0.00227656,65925.0,65913.0,0.075913]
[1729702637443,0.255909,65918.0,65913.0,0.075913]
[1729702637644,0.255909,65918.0,65911.0,0.18]
[1729702638036,0.075905,65921.0,65917.0,0.075908]
[1729702638236,0.075905,65921.0,65918.0,0.192708]
[1729702638442,0.18,65923.0,65918.0,0.1168]
[1729702638443,0.075907,65919.0,65918.0,0.1168]
[1729702638948,0.18,65923.0,65918.0,0.1168]
[1729702639145,0.255903,65923.0,65918.0,0.1168]
[1729702639449,0.18,65923.0,65918.0,0.1168]
[1729702639943,0.075907,65919.0,65918.0,0.1168]
[1729702640140,0.075907,65919.0,65907.0,0.14603816]
[1729702640141,0.075911,65916.0,65907.0,0.2988]
[1729702640450,0.075911,65916.0,65908.0,0.195319]
[1729702640451,0.18,65914.0,65908.0,0.195319]
[1729702640744,0.03719387,65913.0,65908.0,0.1194]
[1729702640949,0.075911,65916.0,65912.0,0.18]
[1729702641145,0.03719391,65915.0,65912.0,0.18]
[1729702641445,0.075919,65909.0,65908.0,0.1194]
[1729702641651,0.18,65909.0,65900.0,0.0035]
[1729702641944,0.075928,65901.0,65900.0,0.0035]
[1729702642150,0.1132,65908.0,65900.0,0.079429]
[1729702642344,0.075925,65904.0,65903.0,0.18]
[1729702642538,0.075925,65904.0,65900.0,0.1835]
[1729702643245,0.02743518,65909.0,65908.0,0.07592]
[1729702643451,0.15066446,65924.0,65913.0,0.075913]
[1729702643452,0.075908,65919.0,65913.0,0.075913]
[1729702643653,0.18,65924.0,65914.0,0.18]
[1729702643845,0.075906,65920.0,65914.0,0.18]
[1729702644152,0.18,65924.0,65918.0,0.18]
[1729702644153,0.02795042,65924.0,65918.0,0.18]
[1729702644453,0.02795042,65924.0,65915.0,0.18]
[1729702644454,0.075911,65916.0,65915.0,0.18]
[1729702644840,0.11310663,65916.0,65915.0,0.18]
[1729702645642,0.075912,65915.0,65911.0,0.18]
[1729702645842,0.03719563,65914.0,65908.0,0.18]
[1729702646052,0.075919,65909.0,65908.0,0.18]
[1729702646251,0.11311463,65909.0,65908.0,0.18]
[1729702646551,0.15973959,65909.0,65904.0,0.18]
[1729702646755,0.03719563,65908.0,65902.0,0.075926]
[1729702646964,0.0838204,65908.0,65901.0,0.23437626]
[1729702647143,0.075927,65902.0,65901.0,0.00227626]
[1729702648062,0.075923,65905.0,65901.0,0.18227626]
[1729702648249,0.12255216,65904.0,65901.0,0.18227626]
[1729702648445,0.04662816,65903.0,65901.0,0.18227626]
[1729702648647,0.04662816,65902.0,65901.0,0.25820426]
[1729702648959,0.3776,65925.0,65901.0,0.18227626]
[1729702648960,0.08382459,65907.0,65901.0,0.18227626]
[1729702649150,0.08382459,65906.0,65905.0,0.075923]
[1729702650048,0.08382459,65906.0,65905.0,0.255923]
[1729702650254,0.13514824,65906.0,65905.0,0.711123]
[1729702650450,0.08382459,65906.0,65905.0,0.711123]
[1729702650751,0.15015728,65911.0,65910.0,0.075918]
[1729702651152,0.05447583,65927.0,65910.0,0.075918]
[1729702651153,0.15015728,65913.0,65912.0,0.075915]
[1729702651357,0.15015728,65918.0,65916.0,0.07591]
[1729702651563,0.16517301,65925.0,65917.0,0.18]
[1729702651860,0.075908,65918.0,65917.0,0.18]
[1729702653259,0.075912,65915.0,65914.0,0.18]
[1729702653452,0.1651961,65915.0,65911.0,0.18]
[1729702653658,0.1651961,65912.0,65907.0,0.18]
[1729702653863,0.07592,65908.0,65907.0,0.18]
[1729702655561,0.2879198,65908.0,65907.0,0.18]
[1729702655959,0.17701738,65908.0,65907.0,0.18]
[1729702656154,0.12254401,65908.0,65907.0,0.18]
[1729702656356,0.12254401,65908.0,65902.0,0.1276]
[1729702656357,0.075924,65904.0,65903.0,0.18]
[1729702656560,0.12254801,65904.0,65903.0,0.18]
[1729702656761,0.12254801,65904.0,65903.0,0.255926]
[1729702656762,0.04662401,65904.0,65903.0,0.255926]
[1729702657451,0.12254801,65904.0,65903.0,0.255926]
[1729702657647,0.12254801,65904.0,65903.0,0.18]
[1729702658656,0.15974647,65904.0,65903.0,0.18]
[1729702658853,0.08382247,65904.0,65903.0,0.255926]
[1729702659064,0.08382247,65904.0,65903.0,0.711126]
[1729702659262,0.19522687,65911.0,65904.0,0.4552]
[1729702659460,0.19522687,65911.0,65910.0,0.255918]
[1729702659860,0.07591,65917.0,65910.0,0.18]
[1729702660066,0.07591,65917.0,65902.0,0.1276]
[1729702660067,0.07591,65917.0,65916.0,0.18]
[1729702660365,0.15972442,65917.0,65916.0,0.18]
[1729702660764,0.08381442,65917.0,65913.0,0.18]
[1729702660967,0.08381442,65917.0,65896.0,0.00227614]
[1729702660968,0.075928,65901.0,65896.0,0.00227614]
[1729702661159,0.11312212,65901.0,65896.0,0.00227614]
[1729702661364,0.15974242,65901.0,65896.0,0.00227614]
[1729702661954,0.15974242,65901.0,65892.0,0.18]
[1729702662969,0.15974242,65901.0,65900.0,0.00294353]
[1729702663759,0.075928,65901.0,65900.0,0.00294353]
[1729702665263,0.10344397,65901.0,65900.0,0.00294353]
[1729702665558,0.10344397,65901.0,65900.0,0.0634716]
[1729702666660,0.10344397,65901.0,65900.0,0.00294353]
[1729702678869,0.18727885,65901.0,65900.0,0.00294353]
[1729702679665,0.33797552,65901.0,65900.0,0.00294353]
[1729702679867,0.18727885,65901.0,65900.0,0.00294353]
[1729702680063,0.18727888,65901.0,65900.0,0.00294353]
[1729702681664,0.24177125,65901.0,65900.0,0.00294353]
[1729702681869,0.3531897,65901.0,65900.0,0.00294353]
[1729702682070,0.40767989,65901.0,65900.0,0.00294353]
[1729702682265,0.24177125,65901.0,65900.0,0.00294353]
[1729702682471,0.27708141,65901.0,65900.0,0.07887253]
[1729702682768,0.02708547,65917.0,65909.0,0.075918]
[1729702683084,0.18,65923.0,65914.0,0.255913]
[1729702683269,0.07591,65917.0,65914.0,0.255913]
[1729702683580,0.18,65916.0,65910.0,0.1207]
[1729702683787,0.15074327,65912.0,65911.0,0.075916]
[1729702684078,0.075914,65914.0,65913.0,0.075914]
[1729702684275,0.075916,65912.0,65910.0,0.1207]
[1729702684473,0.075916,65912.0,65911.0,0.075916]
[1729702684677,0.075916,65911.0,65910.0,0.1207]
[1729702684864,0.18,65911.0,65900.0,0.12054353]
[1729702685068,0.255928,65901.0,65900.0,0.07887253]
[1729702685969,0.075928,65901.0,65900.0,0.07887253]
[1729702686582,0.18,65904.0,65900.0,0.00294353]
[1729702686775,0.075928,65901.0,65900.0,0.00294353]
[1729702687571,0.18,65904.0,65903.0,0.075926]
[1729702688172,0.18,65904.0,65900.0,0.00294353]
[1729702688173,0.075928,65901.0,65900.0,0.07887253]
[1729702688372,0.255925,65904.0,65902.0,0.075926]
[1729702688568,0.075928,65901.0,65900.0,0.00294353]
[1729702688783,0.075928,65901.0,65900.0,0.07887253]
[1729702688978,0.20761271,65904.0,65900.0,0.00294353]
[1729702689180,0.02761271,65904.0,65903.0,0.075926]
[1729702689479,0.1235,65914.0,65901.0,0.18]
[1729702689780,0.075922,65907.0,65906.0,0.255922]
[1729702690187,0.075917,65911.0,65909.0,0.075918]
[1729702690375,0.1235,65914.0,65906.0,0.18]
[1729702690376,0.15104158,65914.0,65906.0,0.18]
[1729702690570,0.07592,65909.0,65906.0,0.18]
[1729702690779,0.03719746,65908.0,65906.0,0.18]
[1729702690971,0.03719746,65907.0,65905.0,0.075923]
[1729702692383,0.075921,65908.0,65905.0,0.075923]
[1729702692384,0.03719847,65906.0,65905.0,0.075923]
[1729702693381,0.03719847,65906.0,65902.0,0.3056]
[1729702693580,0.075925,65904.0,65901.0,0.075928]
[1729702693780,0.08382741,65903.0,65901.0,0.075928]
[1729702693982,0.08382741,65902.0,65901.0,0.075928]
[1729702694379,0.08382741,65902.0,65901.0,0.07772236]
[1729702694683,0.15975441,65902.0,65901.0,0.00179436]
[1729702694986,0.15975441,65902.0,65892.0,0.165]
[1729702694987,0.075935,65895.0,65892.0,0.075938]
[1729702695189,0.08382741,65894.0,65887.0,0.2447]
[1729702695383,0.18,65897.0,65891.0,0.195539]
[1729702695384,0.08382741,65893.0,65891.0,0.195539]
[1729702695576,0.08382741,65892.0,65891.0,0.195539]
[1729702695776,0.03719988,65892.0,65891.0,0.195539]
[1729702696688,0.08383887,65892.0,65891.0,0.195539]
[1729702697783,0.08383887,65892.0,65891.0,0.1196]
[1729702697990,0.08383887,65892.0,65887.0,0.2447]
[1729702698288,0.08383887,65892.0,65888.0,0.075942]
[1729702698289,0.08383887,65891.0,65888.0,0.075942]
[1729702698487,0.24952877,65890.0,65889.0,0.075942]
[1729702698684,0.08383887,65890.0,65889.0,0.075942]
[1729702698878,0.15063122,65890.0,65889.0,0.531262]
[1729702699087,0.23447009,65890.0,65889.0,0.531262]
[1729702699386,0.23447009,65890.0,65889.0,0.711262]
[1729702699387,0.08383887,65890.0,65889.0,0.711262]
[1729702699589,0.12690531,65890.0,65889.0,0.711262]
[1729702699773,0.15063928,65891.0,65890.0,0.075941]
[1729702699979,0.03719898,65903.0,65890.0,0.45532]
[1729702700182,0.15975338,65902.0,65898.0,0.07593]
[1729702700381,0.15975338,65902.0,65889.0,0.02789587]
[1729702700382,0.075931,65899.0,65891.0,0.18]
[1729702700584,0.075933,65897.0,65894.0,0.075936]
[1729702700781,0.18,65907.0,65896.0,0.18]
[1729702700984,0.075923,65905.0,65904.0,0.04548231]
[1729702701185,0.075921,65907.0,65906.0,0.18]
[1729702702081,0.075924,65904.0,65903.0,0.06064308]
[1729702702390,0.075927,65902.0,65900.0,0.06064308]
[1729702702588,0.18,65907.0,65900.0,0.075929]
[1729702702787,0.075926,65904.0,65903.0,0.04548465]
[1729702703088,0.075926,65904.0,65901.0,0.255927]
[1729702703289,0.075926,65904.0,65900.0,0.06064308]
[1729702703483,0.075926,65904.0,65900.0,0.13657208]
[1729702703678,0.18,65911.0,65900.0,0.13657208]
[1729702703990,0.18,65911.0,65905.0,0.04548685]
[1729702704197,0.075922,65907.0,65904.0,0.04548685]
[1729702704694,0.14951151,65913.0,65896.0,0.07566009]
[1729702704695,0.075916,65912.0,65907.0,0.07592]
[1729702704888,0.075916,65912.0,65910.0,0.22548701]
[1729702705089,0.02741151,65913.0,65910.0,0.18]
[1729702705293,0.1235,65914.0,65912.0,0.04548266]
[1729702705493,0.1235,65914.0,65913.0,0.18]
[1729702705791,0.00227679,65915.0,65914.0,0.075913]
[1729702707192,0.075902,65924.0,65913.0,0.18]
[1729702707496,0.075902,65924.0,65923.0,0.2254535]
[1729702707691,0.075902,65924.0,65923.0,0.18]
[1729702708189,0.075904,65922.0,65920.0,0.18]
[1729702708387,0.075905,65921.0,65916.0,0.25591]
[1729702708589,0.18,65926.0,65916.0,0.18]
[1729702708890,0.02684628,65928.0,65901.0,0.075927]
[1729702708891,0.18,65917.0,65901.0,0.075927]
[1729702709192,0.18,65917.0,65893.0,0.18216]
[1729702709193,0.075917,65911.0,65907.0,0.255921]
[1729702709385,0.2387,65916.0,65907.0,0.18]
[1729702709586,0.075919,65909.0,65907.0,0.18]
[1729702710082,0.26671185,65916.0,65907.0,0.18]
[1729702710286,0.075914,65914.0,65913.0,0.18]
[1729702710981,0.075916,65911.0,65910.0,0.18]
[1729702714795,0.075916,65911.0,65906.0,0.075922]
[1729702714796,0.14621185,65916.0,65906.0,0.18]
[1729702714986,0.14621185,65916.0,65914.0,0.255912]
[1729702714987,0.1182,65916.0,65914.0,0.255912]
[1729702715792,0.1182,65916.0,65910.0,0.18]
[1729702716096,0.075914,65914.0,65908.0,0.07592]
[1729702716405,0.08381975,65913.0,65908.0,0.07592]
[1729702716597,0.13829867,65912.0,65908.0,0.07592]
[1729702716897,0.13829867,65911.0,65908.0,0.0340447]
[1729702717094,0.13829867,65910.0,65908.0,0.0340447]
[1729702717296,0.13829867,65909.0,65908.0,0.0340447]
[1729702717894,0.13829867,65909.0,65898.0,0.15264441]
[1729702718091,0.13829899,65908.0,65904.0,0.18]
[1729702718291,0.075923,65905.0,65902.0,0.075926]
[1729702718496,0.075931,65899.0,65894.0,0.075936]
[1729702718703,0.13829899,65898.0,65894.0,0.18]
[1729702719004,0.21424791,65897.0,65894.0,0.075935]
[1729702719203,0.13831491,65896.0,65890.0,0.0279017]
[1729702719502,0.19595756,65893.0,65892.0,0.075938]
[1729702719687,0.33427247,65893.0,65892.0,0.075938]
[1729702719890,0.13831491,65893.0,65892.0,0.255938]
[1729702721490,0.08383588,65893.0,65892.0,0.255938]
[1729702722801,0.13831491,65893.0,65892.0,0.255938]
[1729702722998,0.25829213,65900.0,65892.0,0.255938]
[1729702722999,0.19595756,65900.0,65892.0,0.255938]
[1729702723314,0.1209,65902.0,65892.0,0.255938]
[1729702723315,0.1209,65902.0,65899.0,0.18]
[1729702723792,0.1209,65902.0,65886.0,0.09022222]
[1729702723793,0.1209,65902.0,65896.0,0.18]
[1729702724100,0.075928,65901.0,65900.0,0.18]
[1729702726194,0.1209,65902.0,65900.0,0.18]
[1729702726395,0.075922,65907.0,65903.0,0.075926]
[1729702726594,0.243,65912.0,65903.0,0.18]
[1729702726595,0.02702997,65912.0,65903.0,0.18]
[1729702726809,0.02702997,65912.0,65900.0,0.02777441]
[1729702726810,0.075915,65912.0,65911.0,0.18]
[1729702728094,0.14985358,65914.0,65911.0,0.18]
[1729702728305,0.02805358,65914.0,65911.0,0.255915]
[1729702728502,0.075909,65918.0,65913.0,0.075913]
[1729702728706,0.075909,65918.0,65917.0,0.18]
[1729702730498,0.075916,65911.0,65910.0,0.027819]
[1729702730709,0.255916,65911.0,65910.0,0.027819]
[1729702731013,0.255916,65911.0,65907.0,0.18]
[1729702731014,0.08382157,65911.0,65907.0,0.18]
[1729702731211,0.08382157,65910.0,65907.0,0.18]